bitfinex/quotes_BTCUSD_20240727
["timestamp","ask_amount","ask_price","bid_price","bid_amount"]
[1722110383581,0.035,68416.0,68398.0,0.07412979]
[1722110383582,0.002,68399.0,68398.0,0.07412979]
[1722110383807,0.035,68416.0,68398.0,0.07412979]
[1722110383808,0.002,68400.0,68399.0,0.1462]
[1722110384025,0.002,68400.0,68399.0,0.438601]
[1722110384244,0.002,68400.0,68399.0,0.4913771]
[1722110384708,0.9765,68423.0,68399.0,0.4913771]
[1722110384709,0.00083,68455.0,68422.0,0.292303]
[1722110384926,0.45077872,68448.0,68435.0,0.292247]
[1722110385136,0.45077872,68448.0,68417.0,0.07512979]
[1722110385137,0.0529,68446.0,68417.0,0.07512979]
[1722110385367,0.0529,68446.0,68410.0,0.13922979]
[1722110385368,0.2529,68446.0,68410.0,0.07512979]
[1722110385777,0.2529,68446.0,68414.0,0.146167]
[1722110386001,0.2529,68446.0,68410.0,0.07512979]
[1722110386215,0.2,68438.0,68403.0,0.1]
[1722110386385,0.2,68438.0,68409.0,0.45077872]
[1722110386386,0.036,68436.0,68409.0,0.45077872]
[1722110386612,0.036,68436.0,68419.0,0.07512979]
[1722110386810,0.036,68436.0,68417.0,0.146161]
[1722110387075,0.036,68436.0,68419.0,0.07512979]
[1722110387263,0.036,68436.0,68422.0,0.14615]
[1722110387520,0.036,68436.0,68421.0,0.146153]
[1722110387752,0.036,68436.0,68422.0,0.07512979]
[1722110388019,0.036,68436.0,68428.0,0.146137]
[1722110388249,0.042,68436.0,68424.0,0.292292]
[1722110388472,0.042,68436.0,68427.0,0.14614]
[1722110388694,0.042,68436.0,68425.0,0.03674218]
[1722110388929,0.0529,68444.0,68432.0,0.146129]
[1722110389153,0.0529,68444.0,68420.0,0.292309]
[1722110389383,0.0529,68444.0,68423.0,0.146149]
[1722110389628,0.2,68443.0,68412.0,0.292342]
[1722110389875,0.2,68443.0,68415.0,0.45077872]
[1722110390104,0.1,68442.0,68414.0,0.0433842]
[1722110390327,0.2,68436.0,68422.0,0.001]
[1722110390635,0.1,68442.0,68412.0,0.07512979]
[1722110390845,0.1,68442.0,68421.0,0.292305]
[1722110391069,0.1,68442.0,68423.0,0.292295]
[1722110391292,0.1,68442.0,68429.0,0.146136]
[1722110391513,0.006,68436.0,68427.0,0.14614]
[1722110391774,0.006,68436.0,68427.0,0.04632602]
[1722110392025,0.0529,68444.0,68429.0,0.146136]
[1722110392238,0.006,68442.0,68436.0,0.14612]
[1722110392464,0.006,68442.0,68434.0,0.146125]
[1722110392683,0.006,68442.0,68429.0,0.292272]
[1722110392902,0.006,68442.0,68430.0,0.292269]
[1722110393133,0.006,68442.0,68433.0,0.146128]
[1722110393533,0.0529,68444.0,68433.0,0.146128]
[1722110393735,0.0529,68444.0,68398.0,0.07412979]
[1722110393939,0.0529,68444.0,68422.0,0.2923]
[1722110394113,0.0529,68444.0,68426.0,0.146143]
[1722110394299,0.0529,68444.0,68424.0,0.146146]
[1722110394499,0.0529,68444.0,68433.0,0.001]
[1722110394837,0.0529,68444.0,68414.0,0.292336]
[1722110394992,0.0539,68444.0,68425.0,0.146144]
[1722110395193,0.0539,68444.0,68409.0,0.74313472]
[1722110395395,0.0529,68444.0,68409.0,0.45077872]
[1722110395624,0.0529,68444.0,68419.0,0.144657]
[1722110396034,0.2,68440.0,68413.0,0.05259085]
[1722110396377,0.1,68439.0,68415.0,0.146165]
[1722110396508,0.1,68439.0,68414.0,0.06784994]
[1722110396715,0.1,68439.0,68433.0,0.001]
[1722110396933,0.1,68439.0,68415.0,0.04879126]
[1722110397134,0.1,68439.0,68418.0,0.146159]
[1722110397381,0.1,68439.0,68419.0,0.146158]
[1722110397574,0.1,68439.0,68415.0,0.04879126]
[1722110397948,0.102,68439.0,68414.0,0.06784994]
[1722110398202,0.1,68439.0,68414.0,0.06784994]
[1722110398610,0.107,68439.0,68419.0,0.001]
[1722110399013,0.05481159,68438.0,68419.0,0.001]
[1722110399153,0.107,68439.0,68421.0,0.07512979]
[1722110399349,0.107,68439.0,68428.0,0.07512979]
[1722110399765,0.1,68439.0,68424.0,0.146147]
[1722110399969,0.1,68439.0,68425.0,0.05467782]
[1722110400164,0.107,68439.0,68425.0,0.20082282]
[1722110400370,0.1,68439.0,68425.0,0.05467782]
[1722110400589,0.1,68439.0,68423.0,0.146148]
[1722110400816,0.05580062,68438.0,68428.0,0.001]
[1722110401023,0.05580062,68438.0,68421.0,0.07512979]
[1722110402066,0.05580062,68438.0,68413.0,0.14617]
[1722110402242,0.05580062,68438.0,68419.0,0.07512979]
[1722110402657,0.0889,68437.0,68419.0,0.07512979]
[1722110402857,0.2,68433.0,68419.0,0.07512979]
[1722110403036,0.08913422,68432.0,68412.0,0.07312979]
[1722110403239,0.2,68433.0,68412.0,0.07312979]
[1722110403240,0.05580062,68431.0,68412.0,0.07312979]
[1722110403445,0.05580062,68430.0,68412.0,0.07312979]
[1722110403645,0.2,68433.0,68412.0,0.07312979]
[1722110403646,0.05580062,68429.0,68412.0,0.07312979]
[1722110403869,0.2,68433.0,68412.0,0.07312979]
[1722110403870,0.05580062,68428.0,68419.0,0.07512979]
[1722110404029,0.2,68433.0,68419.0,0.07512979]
[1722110404030,0.05580062,68427.0,68419.0,0.07512979]
[1722110404230,0.05580062,68426.0,68419.0,0.07512979]
[1722110404432,0.2,68433.0,68419.0,0.07512979]
[1722110404433,0.05580062,68425.0,68419.0,0.07512979]
[1722110404741,0.2,68433.0,68419.0,0.07512979]
[1722110404742,0.05580062,68424.0,68419.0,0.07512979]
[1722110404945,0.0529,68422.0,68412.0,0.07912979]
[1722110405149,0.05580062,68421.0,68412.0,0.07912979]
[1722110405332,0.05580062,68421.0,68419.0,0.07512979]
[1722110406601,0.05580062,68421.0,68419.0,0.08012979]
[1722110406806,0.05580062,68421.0,68419.0,0.07512979]
[1722110407146,0.05580062,68421.0,68419.0,0.08612979]
[1722110407351,0.05680062,68421.0,68419.0,0.08612979]
[1722110407565,0.05680062,68421.0,68420.0,0.00103298]
[1722110407743,0.05680062,68421.0,68419.0,0.08612979]
[1722110408660,0.03381755,68420.0,68419.0,0.011]
[1722110408881,0.12561817,68420.0,68419.0,0.011]
[1722110409341,0.2,68409.0,68389.0,0.0611]
[1722110409560,0.22561817,68420.0,68392.0,0.45077872]
[1722110409561,0.0529,68401.0,68392.0,0.45077872]
[1722110409787,0.12561817,68408.0,68392.0,0.45077872]
[1722110409788,0.08961817,68400.0,68399.0,0.07512979]
[1722110410010,0.036,68418.0,68399.0,0.13622979]
[1722110410233,0.04986995,68417.0,68415.0,0.07512979]
[1722110410454,0.03367907,68416.0,68415.0,0.07512979]
[1722110410678,0.08354902,68416.0,68415.0,0.07512979]
[1722110411381,0.08354902,68416.0,68408.0,0.07512979]
[1722110411589,0.08398873,68415.0,68399.0,0.07512979]
[1722110411790,0.08398873,68415.0,68386.0,0.45077872]
[1722110411791,0.036,68400.0,68386.0,0.45077872]
[1722110411993,0.13644902,68399.0,68386.0,0.45077872]
[1722110412204,0.2,68394.0,68373.0,0.08558217]
[1722110412405,0.08354902,68393.0,68384.0,0.07512979]
[1722110412586,0.08354902,68392.0,68384.0,0.07512979]
[1722110412779,0.08354902,68391.0,68384.0,0.07512979]
[1722110413040,0.08351129,68390.0,68384.0,0.07512979]
[1722110413273,0.08351129,68389.0,68386.0,0.002]
[1722110413548,0.2,68394.0,68373.0,0.07512979]
[1722110413549,0.08351129,68388.0,68373.0,0.07512979]
[1722110413771,0.04986995,68387.0,68384.0,0.004]
[1722110413991,0.2,68394.0,68373.0,0.07512979]
[1722110413992,0.036,68385.0,68373.0,0.07512979]
[1722110414225,0.28311081,68384.0,68373.0,0.07512979]
[1722110414448,0.14986995,68383.0,68373.0,0.07512979]
[1722110414673,0.08311081,68382.0,68373.0,0.07512979]
[1722110414885,0.08311081,68382.0,68372.0,0.009053]
[1722110415129,0.08311081,68382.0,68373.0,0.07512979]
[1722110415354,0.04986995,68382.0,68373.0,0.07512979]
[1722110416029,0.04986995,68382.0,68381.0,0.010913]
[1722110416249,0.04986995,68382.0,68381.0,0.002913]
[1722110416503,0.08376292,68382.0,68381.0,0.002913]
[1722110416729,0.13666444,68382.0,68381.0,0.002913]
[1722110416944,0.41426444,68382.0,68381.0,0.002913]
[1722110417165,0.41526444,68382.0,68381.0,0.011913]
[1722110417389,0.41526444,68382.0,68372.0,0.009053]
[1722110417390,0.2,68373.0,68372.0,0.009053]
[1722110417624,0.73416444,68373.0,68372.0,0.009053]
[1722110417837,0.75716444,68373.0,68372.0,0.009053]
[1722110418275,0.57956444,68373.0,68372.0,0.009053]
[1722110418502,0.43586995,68373.0,68372.0,0.009053]
[1722110419442,0.44186995,68373.0,68372.0,0.010053]
[1722110419672,0.43586995,68373.0,68372.0,0.009053]
[1722110420122,0.44186995,68373.0,68372.0,0.010053]
[1722110420363,0.59646995,68373.0,68372.0,0.010053]
[1722110420586,0.2,68364.0,68353.0,0.07512979]
[1722110420810,0.1,68363.0,68353.0,0.07512979]
[1722110421300,0.1,68363.0,68351.0,0.002]
[1722110421301,0.52289241,68362.0,68351.0,0.002]
[1722110421539,0.64589241,68362.0,68351.0,0.002]
[1722110421759,0.20629241,68362.0,68353.0,0.07512979]
[1722110421983,0.174,68362.0,68353.0,0.07512979]
[1722110422402,0.174,68362.0,68361.0,0.004]
[1722110422403,0.1,68362.0,68361.0,0.004]
[1722110422672,0.397,68362.0,68361.0,0.004]
[1722110422905,0.397,68362.0,68351.0,0.002]
[1722110422906,1.0546,68352.0,68351.0,0.002]
[1722110423127,1.20714574,68352.0,68351.0,0.002]
[1722110423775,1.24314574,68352.0,68343.0,0.009053]
[1722110424026,0.1906,68350.0,68343.0,0.009053]
[1722110424266,0.1906,68350.0,68331.0,0.002]
[1722110424267,0.3546,68334.0,68331.0,0.002]
[1722110424466,1.1546,68334.0,68331.0,0.002]
[1722110424670,1.1776,68334.0,68331.0,0.002]
[1722110424859,1.2005,68334.0,68331.0,0.002]
[1722110425370,0.1546,68332.0,68331.0,0.002]
[1722110425480,0.27848489,68332.0,68331.0,0.002]
[1722110425695,0.13859227,68332.0,68331.0,0.002]
[1722110425901,0.22033342,68334.0,68331.0,0.002]
[1722110426164,0.21533342,68334.0,68331.0,0.002]
[1722110426382,0.1,68333.0,68331.0,0.002]
[1722110426582,0.006,68332.0,68331.0,0.002]
[1722110426780,0.1,68333.0,68331.0,0.002]
[1722110427027,0.1,68333.0,68332.0,0.07512979]
[1722110427226,0.1,68333.0,68331.0,0.002]
[1722110427660,0.1776,68332.0,68331.0,0.002]
[1722110427995,0.2776,68332.0,68331.0,0.002]
[1722110428645,0.3004,68332.0,68331.0,0.002]
[1722110429533,0.3064,68332.0,68331.0,0.002]
[1722110429771,0.3004,68332.0,68331.0,0.002]
[1722110430003,0.3064,68332.0,68331.0,0.002]
[1722110430937,0.3064,68332.0,68321.0,0.002]
[1722110430938,0.2,68322.0,68321.0,0.002]
[1722110431185,1.3776,68322.0,68321.0,0.002]
[1722110431409,1.1776,68322.0,68321.0,0.002]
[1722110431640,1.55272979,68322.0,68321.0,0.002]
[1722110431851,1.3546,68313.0,68303.0,0.009053]
[1722110432083,1.4983,68313.0,68303.0,0.009053]
[1722110432330,1.3753,68304.0,68303.0,0.009053]
[1722110432580,1.4753,68304.0,68303.0,0.009053]
[1722110432826,1.0546,68293.0,68290.0,0.009064]
[1722110433302,0.2,68293.0,68290.0,0.009064]
[1722110434236,0.3,68293.0,68290.0,0.009064]
[1722110435037,0.323,68293.0,68290.0,0.009064]
[1722110435170,0.4776,68293.0,68290.0,0.009064]
[1722110435579,0.4783,68293.0,68290.0,0.009064]
[1722110435955,0.788,68293.0,68290.0,0.009064]
[1722110436524,0.83564736,68293.0,68290.0,0.009064]
[1722110436683,0.794,68293.0,68291.0,0.001053]
[1722110436889,0.31924736,68292.0,68291.0,0.001053]
[1722110437290,1.31924736,68292.0,68291.0,0.001053]
[1722110437498,1.31907552,68292.0,68291.0,0.001053]
[1722110437716,1.35654206,68292.0,68291.0,0.001053]
[1722110438140,1.31907552,68292.0,68291.0,0.001053]
[1722110438592,1.2776,68292.0,68291.0,0.001053]
[1722110438795,1.2836,68292.0,68291.0,0.001053]
[1722110439011,1.2776,68292.0,68291.0,0.001053]
[1722110439432,1.30308743,68292.0,68291.0,0.001053]
[1722110439637,1.38802949,68292.0,68291.0,0.001053]
[1722110439840,1.42064945,68292.0,68291.0,0.001053]
[1722110440618,1.38802949,68292.0,68291.0,0.001053]
[1722110440887,1.39737379,68292.0,68290.0,1e-08]
[1722110441125,0.53488774,68291.0,68290.0,1e-08]
[1722110441340,0.65788774,68291.0,68290.0,1e-08]
[1722110441589,1.365,68282.0,68281.0,0.0172658]
[1722110441949,1.50227402,68282.0,68281.0,0.0172658]
[1722110442154,1.54268671,68282.0,68281.0,0.0172658]
[1722110442361,1.57746972,68282.0,68281.0,0.0172658]
[1722110443421,1.55446972,68282.0,68281.0,0.0172658]
[1722110443624,1.38938301,68282.0,68281.0,0.0172658]
[1722110443883,1.3546,68282.0,68281.0,0.0172658]
[1722110444574,1.3546,68282.0,68242.0,0.0015542]
[1722110444575,1.2,68263.0,68242.0,0.0015542]
[1722110444796,1.2,68263.0,68241.0,0.002]
[1722110444797,1.2,68252.0,68241.0,0.002]
[1722110444959,1.2,68252.0,68224.0,9e-05]
[1722110444960,1.3861,68232.0,68224.0,9e-05]
[1722110445235,1.2,68225.0,68224.0,9e-05]
[1722110445432,1.3,68225.0,68224.0,9e-05]
[1722110445556,1.36031885,68225.0,68224.0,9e-05]
[1722110446212,1.323,68225.0,68224.0,9e-05]
[1722110446769,1.023,68225.0,68224.0,9e-05]
[1722110446978,1.323,68225.0,68224.0,9e-05]
[1722110448521,1.4783,68225.0,68221.0,0.002]
[1722110448696,1.4783,68225.0,68211.0,0.002]
[1722110448697,1.3869,68213.0,68212.0,0.0033508]
[1722110448906,2.15324166,68213.0,68212.0,0.0033508]
[1722110449120,2.17624166,68213.0,68212.0,0.0033508]
[1722110449321,2.33084166,68213.0,68212.0,0.0033508]
[1722110449530,2.33084166,68213.0,68181.0,0.002]
[1722110449531,1.2096,68202.0,68181.0,0.002]
[1722110449724,1.2,68194.0,68181.0,0.002]
[1722110449945,1.33694852,68194.0,68181.0,0.002]
[1722110450147,1.63064852,68194.0,68181.0,0.002]
[1722110450355,1.6033,68194.0,68181.0,0.002]
[1722110450562,0.0007,68193.0,68181.0,0.002]
[1722110450825,0.0842754,68192.0,68181.0,0.002]
[1722110451021,0.05038263,68192.0,68181.0,0.002]
[1722110451231,0.08722848,68192.0,68181.0,0.002]
[1722110451379,0.05038263,68192.0,68181.0,0.002]
[1722110451585,0.08148263,68192.0,68181.0,0.002]
[1722110451983,1.2,68185.0,68181.0,0.002]
[1722110452167,4.73912429,68185.0,68182.0,0.001899]
[1722110452368,0.0007,68182.0,68178.0,0.009075]
[1722110452692,0.29268263,68181.0,68178.0,0.009075]
[1722110452880,0.0007,68179.0,68178.0,0.009075]
[1722110453154,1.2,68167.0,68166.0,0.009075]
[1722110453377,1.7799,68167.0,68166.0,0.009075]
[1722110453608,2.15324166,68167.0,68166.0,0.009075]
[1722110454071,2.93241525,68167.0,68166.0,0.009075]
[1722110454317,1.640224,68147.0,68126.0,0.52590851]
[1722110454601,3.18701466,68147.0,68146.0,8e-07]
[1722110454832,1.027236,68144.0,68126.0,0.07512979]
[1722110455056,1.420732,68144.0,68126.0,0.07512979]
[1722110455280,1.46223195,68144.0,68126.0,0.07512979]
[1722110455503,1.420732,68144.0,68126.0,0.07512979]
[1722110455962,1.420732,68144.0,68133.0,0.07512979]
[1722110456188,1.43608096,68144.0,68133.0,0.07512979]
[1722110456712,0.01534896,68144.0,68133.0,0.07512979]
[1722110456938,0.01534896,68144.0,68128.0,0.081]
[1722110456939,1.44908896,68144.0,68134.0,0.07512979]
[1722110457164,0.45559296,68144.0,68143.0,0.155875]
[1722110457397,0.2,68147.0,68143.0,0.155875]
[1722110457622,0.293478,68149.0,68146.0,0.07512979]
[1722110457869,0.2,68150.0,68147.0,0.07512979]
[1722110458101,1.027173,68148.0,68147.0,0.07512979]
[1722110458349,0.733695,68148.0,68147.0,0.14092979]
[1722110458577,0.2,68150.0,68147.0,0.14092979]
[1722110459044,0.293372,68173.0,68147.0,0.14092979]
[1722110459045,0.2,68158.0,68148.0,0.081]
[1722110459287,0.146706,68164.0,68158.0,0.1468]
[1722110459515,0.74410272,68184.0,68148.0,0.0015542]
[1722110459516,0.346737,68149.0,68148.0,0.0015542]
[1722110459738,0.493474,68149.0,68143.0,0.08420479]
[1722110459972,0.2,68159.0,68145.0,0.0658]
[1722110460204,0.45913217,68184.0,68156.0,0.0658]
[1722110460205,0.2,68168.0,68156.0,0.0658]
[1722110460462,0.45077872,68184.0,68163.0,0.0658]
[1722110460463,0.2,68177.0,68163.0,0.0658]
[1722110460688,0.2,68177.0,68161.0,0.07512979]
[1722110460689,0.640031,68177.0,68176.0,0.07512979]
[1722110460928,0.2,68185.0,68176.0,0.22192979]
[1722110461166,0.916566,68226.0,68176.0,0.22192979]
[1722110461167,0.293296,68191.0,68185.0,0.1468]
[1722110461389,0.2,68192.0,68185.0,0.1468]
[1722110461390,1.026602,68186.0,68185.0,0.1468]
[1722110461625,1.726602,68186.0,68185.0,0.1468]
[1722110461858,0.440049,68174.0,68173.0,0.0658]
[1722110462092,0.146683,68174.0,68173.0,0.0658]
[1722110462330,0.2,68177.0,68173.0,0.0658]
[1722110462554,0.2,68185.0,68176.0,0.07512979]
[1722110462782,0.346659,68185.0,68184.0,0.07512979]
[1722110463012,0.146659,68185.0,68184.0,0.22192979]
[1722110463240,0.2,68192.0,68184.0,0.22192979]
[1722110463466,0.346644,68192.0,68191.0,0.07512979]
[1722110463709,0.058808,68202.0,68192.0,0.1468]
[1722110463947,0.146619,68204.0,68199.0,0.07512979]
[1722110464174,0.2,68213.0,68206.0,0.07512979]
[1722110464386,0.146611,68208.0,68206.0,0.07512979]
[1722110464661,0.2,68221.0,68207.0,0.1468]
[1722110464911,0.639746,68221.0,68220.0,0.07512979]
[1722110465148,0.202,68229.0,68220.0,0.22192979]
[1722110465380,0.348565,68229.0,68228.0,0.07512979]
[1722110465635,0.348565,68229.0,68220.0,0.22192979]
[1722110465636,0.202,68229.0,68220.0,0.22192979]
[1722110465891,0.639746,68221.0,68220.0,0.22192979]
[1722110466155,0.146579,68223.0,68220.0,0.22192979]
[1722110466406,0.202,68229.0,68220.0,0.22192979]
[1722110466612,0.002,68229.0,68228.0,0.07512979]
[1722110466853,0.148565,68229.0,68228.0,0.07512979]
[1722110467102,0.441695,68229.0,68228.0,0.07512979]
[1722110467534,0.441695,68229.0,68221.0,0.07512979]
[1722110467535,0.202,68229.0,68221.0,0.07512979]
[1722110467790,0.14658,68222.0,68221.0,0.07512979]
[1722110468052,0.202,68229.0,68221.0,0.07512979]
[1722110468263,0.348565,68229.0,68228.0,0.07512979]
[1722110468470,0.934825,68229.0,68228.0,0.07512979]
[1722110468681,1.227955,68229.0,68228.0,0.07512979]
[1722110469965,1.227955,68229.0,68221.0,0.07512979]
[1722110469966,0.9329,68222.0,68221.0,0.07512979]
[1722110470364,0.63974,68222.0,68221.0,0.07512979]
[1722110470680,0.14658,68222.0,68221.0,0.07512979]
[1722110471097,0.302,68229.0,68221.0,0.09732277]
[1722110471098,0.002,68229.0,68221.0,0.09732277]
[1722110471325,0.002,68229.0,68228.0,0.07512979]
[1722110471542,0.002,68229.0,68228.0,0.14162979]
[1722110471757,0.002,68229.0,68228.0,0.22382979]
[1722110471758,0.148565,68229.0,68228.0,0.22382979]
[1722110471993,1.027955,68229.0,68228.0,0.1487]
[1722110472438,0.732975,68215.0,68214.0,0.1487]
[1722110472653,1.026165,68215.0,68214.0,0.1487]
[1722110472869,1.026315,68205.0,68204.0,0.0665]
[1722110473087,0.2,68201.0,68200.0,0.0822]
[1722110473298,1.326375,68201.0,68200.0,0.0822]
[1722110473533,1.326375,68201.0,68195.0,0.0665]
[1722110473534,0.73318,68196.0,68195.0,0.0665]
[1722110473745,1.026452,68196.0,68195.0,0.0665]
[1722110473945,1.319724,68196.0,68195.0,0.0665]
[1722110474108,1.319724,68196.0,68125.0,87.71544886]
[1722110474109,0.2,68182.0,68181.0,0.0822]
[1722110474321,0.93333,68182.0,68181.0,0.0822]
[1722110474568,0.93333,68182.0,68179.0,0.0665]
[1722110474569,0.733352,68180.0,68179.0,0.0665]
[1722110474772,0.640062,68172.0,68171.0,0.0822]
[1722110475030,0.1,68180.0,68137.0,0.01778945]
[1722110475031,0.146717,68158.0,68157.0,0.0822]
[1722110475271,0.146717,68158.0,68150.0,0.0665]
[1722110475272,0.933662,68151.0,68150.0,0.0665]
[1722110475494,1.227127,68151.0,68150.0,0.0665]
[1722110476169,0.933662,68151.0,68150.0,0.0665]
[1722110476373,0.146718,68158.0,68150.0,0.0665]
[1722110476575,0.346715,68160.0,68157.0,0.07512979]
[1722110476805,0.2,68169.0,68157.0,0.07512979]
[1722110477049,0.146681,68176.0,68169.0,0.1487]
[1722110477257,0.2,68177.0,68175.0,0.07512979]
[1722110477503,0.440037,68176.0,68175.0,0.07512979]
[1722110477700,1.026757,68176.0,68175.0,0.07512979]
[1722110477909,0.640076,68170.0,68169.0,0.1487]
[1722110478119,0.93346,68170.0,68169.0,0.1487]
[1722110478774,0.346692,68170.0,68169.0,0.1487]
[1722110479235,0.1,68179.0,68169.0,0.1487]
[1722110479236,0.2,68178.0,68169.0,0.1487]
[1722110479455,0.1,68177.0,68169.0,0.1487]
[1722110479628,0.14669,68171.0,68169.0,0.1487]
[1722110479860,0.1,68177.0,68169.0,0.1487]
[1722110480277,0.146692,68170.0,68169.0,0.1487]
[1722110480480,0.293361,68176.0,68169.0,0.1487]
[1722110480647,0.146686,68173.0,68169.0,0.1487]
[1722110480853,0.7,68194.0,68169.0,0.1487]
[1722110480854,0.2,68188.0,68169.0,0.1487]
[1722110481075,0.639959,68188.0,68187.0,0.07512979]
[1722110481439,0.146653,68188.0,68187.0,0.22382979]
[1722110481641,0.293229,68207.0,68187.0,0.22382979]
[1722110481642,0.293256,68200.0,68187.0,0.22382979]
[1722110481919,0.146618,68205.0,68199.0,0.07512979]
[1722110482097,0.2,68211.0,68199.0,0.07512979]
[1722110482098,0.146611,68208.0,68199.0,0.07512979]
[1722110482263,0.14661,68208.0,68207.0,0.07512979]
[1722110482718,0.0501,68223.0,68219.0,0.146586]
[1722110482879,0.302,68229.0,68223.0,0.0822]
[1722110482880,0.002,68229.0,68223.0,0.0822]
[1722110483262,0.002,68229.0,68224.0,0.15043218]
[1722110483434,0.43972,68225.0,68224.0,0.0665]
[1722110483659,0.146573,68225.0,68224.0,0.0665]
[1722110483897,0.002,68229.0,68224.0,0.14162979]
[1722110484110,0.002,68229.0,68225.0,0.02238298]
[1722110484561,0.002,68229.0,68228.0,0.146567]
[1722110484785,0.002,68239.0,68238.0,0.0665]
[1722110486029,0.44163,68239.0,68238.0,0.0665]
[1722110486240,0.734717,68239.0,68238.0,0.0665]
[1722110486442,0.44163,68239.0,68238.0,0.0665]
[1722110486598,0.148543,68239.0,68238.0,0.0665]
[1722110486806,0.002,68239.0,68238.0,0.0665]
[1722110487025,0.002,68239.0,68238.0,0.295245]
[1722110487300,0.002,68239.0,68238.0,0.6408605]
[1722110487501,0.00826,68241.0,68240.0,0.439624]
[1722110487702,0.45077872,68264.0,68244.0,0.293065]
[1722110487815,0.45077872,68264.0,68248.0,0.07512979]
[1722110488015,0.146495,68262.0,68248.0,0.22165379]
[1722110488218,0.45077872,68261.0,68252.0,0.146515]
[1722110488422,0.146517,68251.0,68250.0,0.0822]
[1722110488615,0.43956,68250.0,68249.0,0.0015542]
[1722110488837,0.2030969,68266.0,68245.0,0.0015542]
[1722110488838,0.146528,68246.0,68245.0,0.0015542]
[1722110489036,0.732642,68246.0,68245.0,0.0015542]
[1722110489245,0.439663,68234.0,68233.0,0.0665]
[1722110489456,0.146554,68234.0,68233.0,0.0665]
[1722110489677,0.732772,68234.0,68233.0,0.0665]
[1722110489879,0.146554,68234.0,68233.0,0.0665]
[1722110490161,0.002,68259.0,68233.0,0.0665]
[1722110490495,0.146542,68240.0,68237.0,0.07512979]
[1722110490699,0.002,68259.0,68237.0,0.07512979]
[1722110490700,0.146545,68238.0,68237.0,0.07512979]
[1722110491346,0.002,68259.0,68237.0,0.08929277]
[1722110491549,0.002,68259.0,68256.0,0.07512979]
[1722110491759,0.002,68259.0,68257.0,0.061]
[1722110492206,0.002,68259.0,68258.0,0.082]
[1722110494448,0.002,68259.0,68258.0,0.228502]
[1722110494662,0.002,68259.0,68258.0,0.61027228]
[1722110494876,0.002,68259.0,68258.0,1.00327728]
[1722110495289,0.0030969,68266.0,68265.0,0.439462]
[1722110495495,0.0030969,68266.0,68265.0,0.34112979]
[1722110495700,0.1495819,68266.0,68265.0,0.143]
[1722110495920,0.0030969,68266.0,68265.0,0.143]
[1722110496135,0.002,68309.0,68265.0,0.3817]
[1722110496343,0.0175113,68343.0,68318.0,0.439122]
[1722110496560,0.0175113,68343.0,68318.0,0.023]
[1722110496773,0.7,68336.0,68306.0,0.04557293]
[1722110496990,0.7,68327.0,68295.0,0.1]
[1722110497200,0.7,68327.0,68303.0,0.082]
[1722110497201,0.292761,68315.0,68303.0,0.082]
[1722110497458,0.292772,68313.0,68303.0,0.082]
[1722110497683,0.292717,68326.0,68305.0,0.1464]
[1722110497938,0.29274,68320.0,68306.0,0.0245542]
[1722110498171,0.00825,68328.0,68318.0,0.07512979]
[1722110498819,0.00825,68328.0,68318.0,0.09812979]
[1722110498996,0.00825,68328.0,68318.0,0.38750379]
[1722110499228,0.00825,68328.0,68318.0,0.68025179]
[1722110499435,0.00825,68328.0,68318.0,1.07299979]
[1722110499651,0.00825,68328.0,68327.0,0.439065]
[1722110499869,0.00825,68328.0,68327.0,0.123]
[1722110500083,0.00825,68328.0,68319.0,0.07668399]
[1722110500259,0.00825,68328.0,68319.0,0.0015542]
[1722110500260,0.14637,68320.0,68319.0,0.0015542]
[1722110500504,0.00825,68328.0,68319.0,0.0015542]
[1722110500712,0.0153318,68327.0,68319.0,0.01600962]
[1722110501348,0.14637,68320.0,68319.0,0.0015542]
[1722110501565,0.0153318,68327.0,68319.0,0.0015542]
[1722110501770,0.146368,68321.0,68319.0,0.0015542]
[1722110501978,0.43911,68320.0,68319.0,0.0015542]
[1722110502199,0.146372,68319.0,68307.0,0.143]
[1722110502413,0.0153318,68327.0,68315.0,0.07512979]
[1722110502622,0.0153318,68327.0,68322.0,0.07512979]
[1722110503548,0.0153318,68327.0,68324.0,0.292722]
[1722110503748,0.0153318,68327.0,68326.0,0.289357]
[1722110503959,0.0153318,68327.0,68326.0,0.18404868]
[1722110504160,0.0153318,68327.0,68326.0,0.64611968]
[1722110504363,0.0153318,68327.0,68326.0,0.45340568]
[1722110504568,0.0153318,68327.0,68326.0,0.59976268]
[1722110504812,0.0153318,68327.0,68326.0,0.266]
[1722110505015,0.0153318,68327.0,68326.0,0.243]
[1722110505233,0.0153318,68327.0,68319.0,0.0015542]
[1722110505382,0.0153318,68327.0,68318.0,0.13612979]
[1722110505582,0.0153318,68327.0,68319.0,0.0015542]
[1722110506008,0.0153318,68327.0,68326.0,0.439071]
[1722110506217,0.146263,68370.0,68343.0,0.0306]
[1722110506416,0.29252,68372.0,68343.0,0.0306]
[1722110506417,0.45077872,68357.0,68354.0,0.07512979]
[1722110506637,0.01532583,68358.0,68347.0,0.07512979]
[1722110506837,0.29252,68372.0,68349.0,0.04556358]
[1722110506838,0.7,68372.0,68349.0,0.04556358]
[1722110507009,0.01532366,68356.0,68348.0,0.0015542]
[1722110507230,0.292557,68363.0,68346.0,0.0015542]
[1722110507412,0.7,68372.0,68346.0,0.0015542]
[1722110507612,0.01532301,68355.0,68346.0,0.0015542]
[1722110507821,0.7,68372.0,68346.0,0.0015542]
[1722110508115,0.292534,68368.0,68344.0,0.0245542]
[1722110508372,0.292507,68375.0,68353.0,0.02939]
[1722110508587,0.01532057,68367.0,68363.0,0.146275]